[Event "Early-Titled-Tuesday-Blitz-February-13-2024"]
[Site "Chess.com"]
[Date "2024.02.13"]
[Round "2"]
[White "BelaKis"]
[Black "Mr_ruthless"]
[Result "0-1"]
[WhiteElo "2192"]
[BlackElo "2492"]
[TimeControl "180+1"]
[EndTime "8:19:51 PST"]
[Termination "Mr_ruthless won on time"]

1. d4 {[%clk 0:03:00.9]} 1... Nf6 {[%clk 0:02:54.5]} 2. c4 {[%clk 0:03:00.7]}
2... c5 {[%clk 0:02:54.9]} 3. d5 {[%clk 0:03:00.5]} 3... e6 {[%clk 0:02:55.6]}
4. Nc3 {[%clk 0:03:00.3]} 4... exd5 {[%clk 0:02:55.9]} 5. cxd5 {[%clk
0:03:01.2]} 5... d6 {[%clk 0:02:56]} 6. e4 {[%clk 0:03:01.8]} 6... g6 {[%clk
0:02:56.5]} 7. h3 {[%clk 0:03:02.5]} 7... Bg7 {[%clk 0:02:56.3]} 8. Bg5 {[%clk
0:03:03.2]} 8... O-O {[%clk 0:02:55.8]} 9. Nf3 {[%clk 0:03:03.8]} 9... Re8
{[%clk 0:02:44.1]} 10. Bd3 {[%clk 0:03:03.4]} 10... h6 {[%clk 0:02:44.1]} 11.
Be3 {[%clk 0:03:03]} 11... b5 {[%clk 0:02:44.4]} 12. Bxb5 {[%clk 0:02:51.1]}
12... Nxe4 {[%clk 0:02:30.5]} 13. Bxe8 {[%clk 0:02:32.3]} 13... Nxc3 {[%clk
0:02:30.5]} 14. bxc3 {[%clk 0:02:23]} 14... Bxc3+ {[%clk 0:02:29.9]} 15. Kf1
{[%clk 0:02:23.3]} 15... Qxe8 {[%clk 0:02:13.6]} 16. Kg1 {[%clk 0:02:08.6]}
16... Bxa1 {[%clk 0:02:02.1]} 17. Qxa1 {[%clk 0:02:08.3]} 17... Kh7 {[%clk
0:02:03]} 18. Kh2 {[%clk 0:02:04.9]} 18... Nd7 {[%clk 0:02:02]} 19. Re1 {[%clk
0:02:04.3]} 19... Qh8 {[%clk 0:01:58.6]} 20. Qc1 {[%clk 0:01:54.9]} 20... Ne5
{[%clk 0:01:54]} 21. Bxh6 {[%clk 0:01:44]} 21... Nxf3+ {[%clk 0:01:53.8]} 22.
gxf3 {[%clk 0:01:44]} 22... Qf6 {[%clk 0:01:52.1]} 23. Kg3 {[%clk 0:01:02.7]}
23... Bb7 {[%clk 0:01:44.7]} 24. Bg5 {[%clk 0:00:54.3]} 24... Qf5 {[%clk
0:01:44.5]} 25. Re7 {[%clk 0:00:52.4]} 25... Bxd5 {[%clk 0:01:41.9]} 26. f4
{[%clk 0:00:50.5]} 26... Rb8 {[%clk 0:01:26]} 27. Qc3 {[%clk 0:00:09.6]} 27...
c4 {[%clk 0:01:09.8]} 28. Qf6 {[%clk 0:00:06.7]} 28... Rb1 {[%clk 0:00:34.6]}
29. Re8 {[%clk 0:00:04.8]} 29... Rg1+ {[%clk 0:00:21.2]} 30. Kh4 {[%clk
0:00:04.5]} 30... Qxf6 {[%clk 0:00:16.4]} 31. Bxf6 {[%clk 0:00:05.4]} 31... g5+
{[%clk 0:00:16.9]} 32. Bxg5 {[%clk 0:00:05.2]} 32... c3 {[%clk 0:00:15.6]} 33.
f5 {[%clk 0:00:05.5]} 33... c2 {[%clk 0:00:12.4]} 34. Bf6 {[%clk 0:00:05.9]}
34... Rg8 {[%clk 0:00:10.8]} 0-1

[Event "Early-Titled-Tuesday-Blitz-February-13-2024"]
[Site "Chess.com"]
[Date "2024.02.13"]
[Round "2"]
[White "zverr1"]
[Black "rezamahdavi2008"]
[Result "0-1"]
[WhiteElo "2582"]
[BlackElo "2836"]
[TimeControl "180+1"]
[EndTime "8:19:52 PST"]
[Termination "rezamahdavi2008 won by checkmate"]

1. e4 {[%clk 0:03:00.9]} 1... c5 {[%clk 0:02:56.8]} 2. Nf3 {[%clk 0:03:00.8]}
2... d6 {[%clk 0:02:57.2]} 3. Nc3 {[%clk 0:02:59.7]} 3... Nf6 {[%clk 0:02:55.6]}
4. e5 {[%clk 0:03:00]} 4... dxe5 {[%clk 0:02:51.3]} 5. Nxe5 {[%clk 0:03:00.9]}
5... a6 {[%clk 0:02:50.1]} 6. g3 {[%clk 0:03:00.9]} 6... Qd6 {[%clk 0:02:33]} 7.
f4 {[%clk 0:02:51.7]} 7... Nc6 {[%clk 0:02:30.7]} 8. Nc4 {[%clk 0:02:46.8]} 8...
Qe6+ {[%clk 0:02:26.6]} 9. Ne3 {[%clk 0:02:46.6]} 9... h5 {[%clk 0:02:20.5]} 10.
Bg2 {[%clk 0:02:46.2]} 10... h4 {[%clk 0:02:19.8]} 11. Nd5 {[%clk 0:02:10.2]}
11... Nxd5 {[%clk 0:02:17]} 12. Bxd5 {[%clk 0:02:11.1]} 12... Qh6 {[%clk
0:01:50.7]} 13. c3 {[%clk 0:01:16.1]} 13... hxg3 {[%clk 0:01:47.6]} 14. hxg3
{[%clk 0:01:16]} 14... Qxh1+ {[%clk 0:01:47.8]} 15. Bxh1 {[%clk 0:01:15.9]}
15... Rxh1+ {[%clk 0:01:48.7]} 16. Nf1 {[%clk 0:01:16.6]} 16... Bh3 {[%clk
0:01:49]} 17. Qb3 {[%clk 0:01:02.2]} 17... Rxf1+ {[%clk 0:01:00.9]} 18. Ke2
{[%clk 0:01:01.7]} 18... O-O-O {[%clk 0:01:01.8]} 19. Qxf7 {[%clk 0:00:59.4]}
19... Ne5 {[%clk 0:00:45]} 20. Qg8 {[%clk 0:00:38.5]} 20... Nf3 {[%clk
0:00:40.9]} 21. Qh7 {[%clk 0:00:22.9]} 21... Ng1+ {[%clk 0:00:32]} 22. Ke3
{[%clk 0:00:20.6]} 22... e6 {[%clk 0:00:27.1]} 23. d4 {[%clk 0:00:18.1]} 23...
cxd4+ {[%clk 0:00:21.3]} 24. cxd4 {[%clk 0:00:19]} 24... Rf3+ {[%clk 0:00:20.8]}
25. Kd2 {[%clk 0:00:13.6]} 25... Rxd4+ {[%clk 0:00:20.7]} 26. Kc2 {[%clk
0:00:07.9]} 26... Bf5+ {[%clk 0:00:20.6]} 27. Qxf5 {[%clk 0:00:08.4]} 27... exf5
{[%clk 0:00:21.5]} 28. Bd2 {[%clk 0:00:08.2]} 28... Rf2 {[%clk 0:00:21.9]} 29.
Rxg1 {[%clk 0:00:08.5]} 29... Rdxd2+ {[%clk 0:00:21.5]} 30. Kc3 {[%clk
0:00:08.3]} 30... Rc2+ {[%clk 0:00:22]} 31. Kd4 {[%clk 0:00:06.8]} 31... Bc5+
{[%clk 0:00:21.1]} 32. Ke5 {[%clk 0:00:05]} 32... Rfe2+ {[%clk 0:00:21.7]} 33.
Kxf5 {[%clk 0:00:04.9]} 33... Bxg1 {[%clk 0:00:22.6]} 34. g4 {[%clk 0:00:05.6]}
34... Rxb2 {[%clk 0:00:23.5]} 35. g5 {[%clk 0:00:05.7]} 35... Rxa2 {[%clk
0:00:22.8]} 36. Kg6 {[%clk 0:00:06.2]} 36... Rf2 {[%clk 0:00:22.4]} 37. f5
{[%clk 0:00:07.1]} 37... Ra5 {[%clk 0:00:22.6]} 38. f6 {[%clk 0:00:06.8]} 38...
gxf6 {[%clk 0:00:23.5]} 39. gxf6 {[%clk 0:00:07.2]} 39... Raf5 {[%clk
0:00:23.7]} 40. f7 {[%clk 0:00:06]} 40... Rxf7 {[%clk 0:00:23.6]} 41. Kg5 {[%clk
0:00:06.5]} 41... R2f6 {[%clk 0:00:23.7]} 42. Kh5 {[%clk 0:00:06.5]} 42... Rg7
{[%clk 0:00:23]} 43. Kh4 {[%clk 0:00:07.1]} 43... Rh6# {[%clk 0:00:23.9]} 0-1

[Event "Early-Titled-Tuesday-Blitz-February-13-2024"]
[Site "Chess.com"]
[Date "2024.02.13"]
[Round "2"]
[White "Philosopherrr"]
[Black "ChristianArca"]
[Result "1/2-1/2"]
[WhiteElo "2402"]
[BlackElo "2733"]
[TimeControl "180+1"]
[EndTime "8:19:52 PST"]
[Termination "Game drawn - insufficient material"]

1. e4 {[%clk 0:02:57.1]} 1... c6 {[%clk 0:02:59.7]} 2. Nf3 {[%clk 0:02:51.6]}
2... d5 {[%clk 0:03:00.6]} 3. e5 {[%clk 0:02:50.7]} 3... Bg4 {[%clk 0:03:00]} 4.
h3 {[%clk 0:02:50.4]} 4... Bxf3 {[%clk 0:03:00.2]} 5. Qxf3 {[%clk 0:02:51.3]}
5... e6 {[%clk 0:03:00.1]} 6. d4 {[%clk 0:02:51]} 6... c5 {[%clk 0:03:00.8]} 7.
c3 {[%clk 0:02:51.5]} 7... Nc6 {[%clk 0:03:01.5]} 8. Be3 {[%clk 0:02:51.8]} 8...
Qb6 {[%clk 0:03:02.1]} 9. Nd2 {[%clk 0:02:48.9]} 9... cxd4 {[%clk 0:03:02]} 10.
cxd4 {[%clk 0:02:49.3]} 10... Nb4 {[%clk 0:02:57.4]} 11. Qd1 {[%clk 0:02:46.6]}
11... Rc8 {[%clk 0:02:57.9]} 12. Rc1 {[%clk 0:02:38.4]} 12... Rxc1 {[%clk
0:02:55.2]} 13. Qxc1 {[%clk 0:02:38.4]} 13... Ne7 {[%clk 0:02:56.1]} 14. a3
{[%clk 0:02:33.7]} 14... Nbc6 {[%clk 0:02:56]} 15. Qc3 {[%clk 0:02:32.9]} 15...
Nf5 {[%clk 0:02:55.7]} 16. Nf3 {[%clk 0:02:32.7]} 16... Be7 {[%clk 0:02:51.8]}
17. Bd3 {[%clk 0:02:32.8]} 17... Nxe3 {[%clk 0:02:52]} 18. fxe3 {[%clk
0:02:33.3]} 18... O-O {[%clk 0:02:52.9]} 19. O-O {[%clk 0:02:30]} 19... g6
{[%clk 0:02:50]} 20. b4 {[%clk 0:02:27]} 20... a5 {[%clk 0:02:48.6]} 21. b5
{[%clk 0:02:26.9]} 21... Na7 {[%clk 0:02:48.6]} 22. a4 {[%clk 0:02:22]} 22...
Rc8 {[%clk 0:02:48.5]} 23. Qb2 {[%clk 0:02:21.6]} 23... Bb4 {[%clk 0:02:45.7]}
24. Rc1 {[%clk 0:02:21]} 24... Qd8 {[%clk 0:02:42]} 25. Kh2 {[%clk 0:02:16.1]}
25... Rxc1 {[%clk 0:02:42]} 26. Qxc1 {[%clk 0:02:15.9]} 26... Nc8 {[%clk
0:02:42.9]} 27. Qc2 {[%clk 0:02:11.2]} 27... Nb6 {[%clk 0:02:42.8]} 28. h4
{[%clk 0:02:06.9]} 28... Be7 {[%clk 0:02:39.8]} 29. Kh3 {[%clk 0:02:03.1]} 29...
Kg7 {[%clk 0:02:39.9]} 30. g4 {[%clk 0:01:51.7]} 30... Bb4 {[%clk 0:02:37.1]}
31. h5 {[%clk 0:01:46.1]} 31... Qc8 {[%clk 0:02:37.6]} 32. Qf2 {[%clk
0:01:20.9]} 32... Be7 {[%clk 0:02:31.6]} 33. Bc2 {[%clk 0:01:16.7]} 33... Qc3
{[%clk 0:02:27.9]} 34. Qd2 {[%clk 0:01:05.5]} 34... Bb4 {[%clk 0:02:18.7]} 35.
Qxc3 {[%clk 0:01:05]} 35... Bxc3 {[%clk 0:02:19.6]} 36. hxg6 {[%clk 0:01:04.5]}
36... hxg6 {[%clk 0:02:19.3]} 37. Kg3 {[%clk 0:01:04.1]} 37... Nc4 {[%clk
0:02:19.1]} 38. Kf2 {[%clk 0:00:59.1]} 38... Bb2 {[%clk 0:02:16.9]} 39. Ke2
{[%clk 0:00:54.8]} 39... Bc1 {[%clk 0:02:15.5]} 40. e4 {[%clk 0:00:55.3]} 40...
Nb6 {[%clk 0:02:07.1]} 41. Ne1 {[%clk 0:00:53.3]} 41... dxe4 {[%clk 0:02:05]}
42. Bxe4 {[%clk 0:00:53.1]} 42... Nxa4 {[%clk 0:02:05.5]} 43. Bxb7 {[%clk
0:00:53.4]} 43... Nc3+ {[%clk 0:02:04.9]} 44. Kd3 {[%clk 0:00:51.3]} 44... Nxb5
{[%clk 0:02:05.5]} 45. Kc4 {[%clk 0:00:50.1]} 45... Na3+ {[%clk 0:01:59.8]} 46.
Kb3 {[%clk 0:00:50.2]} 46... Nb5 {[%clk 0:01:58.5]} 47. Kc4 {[%clk 0:00:50.6]}
47... Nc7 {[%clk 0:01:57.7]} 48. Nd3 {[%clk 0:00:47.8]} 48... Be3 {[%clk
0:01:57.5]} 49. Nb2 {[%clk 0:00:33.1]} 49... Kh6 {[%clk 0:01:57.1]} 50. Kd3
{[%clk 0:00:33.6]} 50... Bg1 {[%clk 0:01:56.5]} 51. Bf3 {[%clk 0:00:28.5]} 51...
Kg5 {[%clk 0:01:55.3]} 52. Bd1 {[%clk 0:00:29.1]} 52... Nb5 {[%clk 0:01:54.3]}
53. Nc4 {[%clk 0:00:29.3]} 53... Nxd4 {[%clk 0:01:53.3]} 54. Nxa5 {[%clk
0:00:29.4]} 54... Nc6 {[%clk 0:01:53.1]} 55. Nxc6 {[%clk 0:00:27.7]} 55... Kf4
{[%clk 0:01:52.4]} 56. Nd8 {[%clk 0:00:23.3]} 56... Kxe5 {[%clk 0:01:50.9]} 57.
Nxf7+ {[%clk 0:00:24]} 57... Kf4 {[%clk 0:01:51.6]} 58. Nh8 {[%clk 0:00:22.6]}
58... Kg5 {[%clk 0:01:51.5]} 59. Nf7+ {[%clk 0:00:21.5]} 59... Kf6 {[%clk
0:01:51.1]} 60. Nd6 {[%clk 0:00:20.6]} 60... Ke5 {[%clk 0:01:51.6]} 61. Ne4
{[%clk 0:00:20.4]} 61... Kf4 {[%clk 0:01:51.8]} 62. Nd2 {[%clk 0:00:17.5]} 62...
Be3 {[%clk 0:01:51.7]} 63. Nc4 {[%clk 0:00:17.7]} 63... Bc5 {[%clk 0:01:51.5]}
64. Be2 {[%clk 0:00:18.1]} 64... e5 {[%clk 0:01:52]} 65. Bd1 {[%clk 0:00:17.1]}
65... e4+ {[%clk 0:01:52.3]} 66. Kc3 {[%clk 0:00:17.6]} 66... Be7 {[%clk
0:01:48.8]} 67. Kd4 {[%clk 0:00:17.5]} 67... Bf6+ {[%clk 0:01:49]} 68. Kd5
{[%clk 0:00:17.2]} 68... Bc3 {[%clk 0:01:47.5]} 69. Ke6 {[%clk 0:00:17.2]} 69...
g5 {[%clk 0:01:47.2]} 70. Nd6 {[%clk 0:00:16.1]} 70... e3 {[%clk 0:01:46.5]} 71.
Nf7 {[%clk 0:00:16.4]} 71... Bd2 {[%clk 0:01:41.7]} 72. Kd5 {[%clk 0:00:16.4]}
72... Kg3 {[%clk 0:01:41.8]} 73. Nxg5 {[%clk 0:00:15.7]} 73... e2 {[%clk
0:01:42.4]} 74. Bxe2 {[%clk 0:00:15.8]} 74... Bxg5 {[%clk 0:01:42.4]} 75. Ke4
{[%clk 0:00:15.6]} 75... Kh4 {[%clk 0:01:42.8]} 76. Kf5 {[%clk 0:00:16]} 76...
Bd2 {[%clk 0:01:43.7]} 77. g5 {[%clk 0:00:15.7]} 77... Bxg5 {[%clk 0:01:44.6]}
1/2-1/2

[Event "Early-Titled-Tuesday-Blitz-February-13-2024"]
[Site "Chess.com"]
[Date "2024.02.13"]
[Round "2"]
[White "amiqu"]
[Black "lachesisQ"]
[Result "0-1"]
[WhiteElo "2050"]
[BlackElo "3050"]
[TimeControl "180+1"]
[EndTime "8:19:52 PST"]
[Termination "lachesisQ won on time"]

1. d4 {[%clk 0:03:00.9]} 1... g6 {[%clk 0:02:58.6]} 2. Nf3 {[%clk 0:02:56.8]}
2... Bg7 {[%clk 0:02:58.8]} 3. Bf4 {[%clk 0:02:55.8]} 3... d6 {[%clk 0:02:58.4]}
4. h3 {[%clk 0:02:54.4]} 4... Nd7 {[%clk 0:02:57.6]} 5. e3 {[%clk 0:02:52.1]}
5... Ngf6 {[%clk 0:02:57.7]} 6. Be2 {[%clk 0:02:49.4]} 6... O-O {[%clk
0:02:58.3]} 7. O-O {[%clk 0:02:49.5]} 7... Qe8 {[%clk 0:02:56.3]} 8. Bh2 {[%clk
0:02:47.4]} 8... e5 {[%clk 0:02:56.3]} 9. c4 {[%clk 0:02:47.9]} 9... Ne4 {[%clk
0:02:54.1]} 10. a4 {[%clk 0:02:47.1]} 10... a5 {[%clk 0:02:52.6]} 11. Nbd2
{[%clk 0:02:42.7]} 11... Nxd2 {[%clk 0:02:51.3]} 12. Qxd2 {[%clk 0:02:39.6]}
12... b6 {[%clk 0:02:50.3]} 13. dxe5 {[%clk 0:02:14.2]} 13... Nxe5 {[%clk
0:02:48.3]} 14. Nxe5 {[%clk 0:02:11.7]} 14... Bxe5 {[%clk 0:02:48.1]} 15. Bxe5
{[%clk 0:02:11.1]} 15... Qxe5 {[%clk 0:02:49]} 16. Bf3 {[%clk 0:02:11]} 16...
Rb8 {[%clk 0:02:48.6]} 17. Qd4 {[%clk 0:02:11.2]} 17... Re8 {[%clk 0:02:42.7]}
18. Rfd1 {[%clk 0:02:06.3]} 18... Kg7 {[%clk 0:02:40.4]} 19. Rd2 {[%clk
0:02:04]} 19... g5 {[%clk 0:02:36.6]} 20. Rad1 {[%clk 0:02:02.2]} 20... Bf5
{[%clk 0:02:36.3]} 21. Qxe5+ {[%clk 0:01:46.7]} 21... Rxe5 {[%clk 0:02:37.2]}
22. Rd5 {[%clk 0:01:46.9]} 22... Rbe8 {[%clk 0:02:35.4]} 23. R1d2 {[%clk
0:01:43.7]} 23... Bg6 {[%clk 0:02:27.8]} 24. g3 {[%clk 0:01:37.8]} 24... f6
{[%clk 0:02:27]} 25. Kg2 {[%clk 0:01:37]} 25... Bf7 {[%clk 0:02:27.1]} 26. R5d4
{[%clk 0:01:35.9]} 26... h5 {[%clk 0:02:25.4]} 27. Bd5 {[%clk 0:01:15.9]} 27...
Bg6 {[%clk 0:02:24.5]} 28. Bc6 {[%clk 0:01:14.7]} 28... R8e7 {[%clk 0:02:24.2]}
29. g4 {[%clk 0:00:59.5]} 29... h4 {[%clk 0:02:23.6]} 30. Bd5 {[%clk 0:00:57.1]}
30... Be8 {[%clk 0:02:21.8]} 31. b3 {[%clk 0:00:54.9]} 31... Bg6 {[%clk
0:02:12.9]} 32. Bc6 {[%clk 0:00:54.1]} 32... Kf7 {[%clk 0:02:12.5]} 33. Bd5+
{[%clk 0:00:53.8]} 33... Ke8 {[%clk 0:02:12.7]} 34. Bc6+ {[%clk 0:00:53.9]}
34... Kd8 {[%clk 0:02:13.1]} 35. Bf3 {[%clk 0:00:51]} 35... Kd7 {[%clk
0:02:08.7]} 36. Kh2 {[%clk 0:00:42.3]} 36... Rc5 {[%clk 0:02:06.3]} 37. Kg2
{[%clk 0:00:39.5]} 37... Bh7 {[%clk 0:02:01.6]} 38. Bd5 {[%clk 0:00:36.1]} 38...
c6 {[%clk 0:01:58.3]} 39. Bf3 {[%clk 0:00:35.4]} 39... Re6 {[%clk 0:01:58.6]}
40. Kh2 {[%clk 0:00:33.8]} 40... Kc7 {[%clk 0:01:58.2]} 41. Kg2 {[%clk
0:00:33.8]} 41... Bg6 {[%clk 0:01:58]} 42. Kh2 {[%clk 0:00:33.9]} 42... Rce5
{[%clk 0:01:37]} 43. Kg2 {[%clk 0:00:32.2]} 43... Bh7 {[%clk 0:01:33]} 44. Kh2
{[%clk 0:00:29.8]} 44... Be4 {[%clk 0:01:33]} 45. Bxe4 {[%clk 0:00:23.2]} 45...
Rxe4 {[%clk 0:01:33.2]} 46. Rxe4 {[%clk 0:00:23.8]} 46... Rxe4 {[%clk
0:01:34.1]} 47. Kg2 {[%clk 0:00:18.7]} 47... Re5 {[%clk 0:01:34]} 48. Kf3 {[%clk
0:00:18.4]} 48... Kd7 {[%clk 0:01:31.3]} 49. Rd4 {[%clk 0:00:18.3]} 49... Rc5
{[%clk 0:01:22.5]} 50. Ke4 {[%clk 0:00:15]} 50... Ke6 {[%clk 0:01:22]} 51. f4
{[%clk 0:00:14.1]} 51... d5+ {[%clk 0:01:20.5]} 52. Kd3 {[%clk 0:00:10.9]} 52...
dxc4+ {[%clk 0:01:20.2]} 53. Rxc4 {[%clk 0:00:11.2]} 53... Rd5+ {[%clk
0:01:17.6]} 54. Rd4 {[%clk 0:00:11.3]} 54... b5 {[%clk 0:01:11.6]} 55. axb5
{[%clk 0:00:08.6]} 55... cxb5 {[%clk 0:01:11.6]} 56. Rxd5 {[%clk 0:00:02.1]}
56... Kxd5 {[%clk 0:01:12.5]} 57. fxg5 {[%clk 0:00:01.6]} 57... fxg5 {[%clk
0:01:12.4]} 58. Kc3 {[%clk 0:00:01.7]} 58... Ke4 {[%clk 0:01:12.3]} 59. Kd2
{[%clk 0:00:01.1]} 59... a4 {[%clk 0:01:12.4]} 60. bxa4 {[%clk 0:00:01.4]} 60...
bxa4 {[%clk 0:01:13.3]} 0-1

[Event "Early-Titled-Tuesday-Blitz-February-13-2024"]
[Site "Chess.com"]
[Date "2024.02.13"]
[Round "2"]
[White "jup1978"]
[Black "Arystanner"]
[Result "0-1"]
[WhiteElo "2575"]
[BlackElo "2818"]
[TimeControl "180+1"]
[EndTime "8:19:53 PST"]
[Termination "Arystanner won by resignation"]

1. d4 {[%clk 0:03:00.9]} 1... Nf6 {[%clk 0:02:57.8]} 2. Nf3 {[%clk 0:02:58.5]}
2... e6 {[%clk 0:02:57.2]} 3. c4 {[%clk 0:02:57.5]} 3... b6 {[%clk 0:02:56.1]}
4. g3 {[%clk 0:02:56.7]} 4... Bb7 {[%clk 0:02:56.3]} 5. Bg2 {[%clk 0:02:56.8]}
5... Be7 {[%clk 0:02:56.6]} 6. O-O {[%clk 0:02:57.4]} 6... O-O {[%clk
0:02:56.9]} 7. Re1 {[%clk 0:02:57.9]} 7... d5 {[%clk 0:02:45.9]} 8. cxd5 {[%clk
0:02:56.7]} 8... exd5 {[%clk 0:02:46.1]} 9. Nc3 {[%clk 0:02:56.1]} 9... Na6
{[%clk 0:02:46.3]} 10. Bf4 {[%clk 0:02:54]} 10... Ne4 {[%clk 0:02:44.6]} 11. Rc1
{[%clk 0:02:51.6]} 11... c5 {[%clk 0:02:45.1]} 12. h4 {[%clk 0:02:49.4]} 12...
Nc7 {[%clk 0:02:39.6]} 13. dxc5 {[%clk 0:02:34.6]} 13... Nxc3 {[%clk 0:02:26.7]}
14. Rxc3 {[%clk 0:02:32.7]} 14... Bxc5 {[%clk 0:02:27.4]} 15. b4 {[%clk
0:02:23.5]} 15... Bd6 {[%clk 0:02:22.6]} 16. Bxd6 {[%clk 0:02:01.1]} 16... Qxd6
{[%clk 0:02:23.5]} 17. Ng5 {[%clk 0:01:59.3]} 17... Ne6 {[%clk 0:02:15.5]} 18.
Rd3 {[%clk 0:01:42.1]} 18... Nxg5 {[%clk 0:02:03.4]} 19. hxg5 {[%clk 0:01:43]}
19... Qxb4 {[%clk 0:02:03]} 20. Bxd5 {[%clk 0:01:38.7]} 20... Bxd5 {[%clk
0:02:00]} 21. Rxd5 {[%clk 0:01:39.6]} 21... Rfe8 {[%clk 0:02:00.2]} 22. e3
{[%clk 0:01:29.2]} 22... Rac8 {[%clk 0:01:58.7]} 23. Qd2 {[%clk 0:01:28]} 23...
Qxd2 {[%clk 0:01:56.2]} 24. Rxd2 {[%clk 0:01:28.9]} 24... Rc5 {[%clk 0:01:56.6]}
25. f4 {[%clk 0:01:27.2]} 25... Ra5 {[%clk 0:01:53.2]} 26. Kf2 {[%clk
0:01:27.3]} 26... g6 {[%clk 0:01:52]} 27. Ree2 {[%clk 0:01:25.9]} 27... Kg7
{[%clk 0:01:48.3]} 28. Rd7 {[%clk 0:01:23.4]} 28... Re4 {[%clk 0:01:46.9]} 29.
Rc2 {[%clk 0:01:01.8]} 29... Re8 {[%clk 0:01:28.9]} 30. Rcc7 {[%clk 0:00:54.7]}
30... Rxa2+ {[%clk 0:01:28.5]} 31. Kf3 {[%clk 0:00:55.3]} 31... Rf8 {[%clk
0:01:28.7]} 32. Rxa7 {[%clk 0:00:55.4]} 32... Rxa7 {[%clk 0:01:28.5]} 33. Rxa7
{[%clk 0:00:56.3]} 33... Rb8 {[%clk 0:01:28.7]} 34. g4 {[%clk 0:00:53.4]} 34...
b5 {[%clk 0:01:28.8]} 35. f5 {[%clk 0:00:53.7]} 35... gxf5 {[%clk 0:01:25.8]}
36. gxf5 {[%clk 0:00:54.6]} 36... b4 {[%clk 0:01:26.4]} 37. Kf4 {[%clk
0:00:51.1]} 37... b3 {[%clk 0:01:20.2]} 38. Ra1 {[%clk 0:00:51.6]} 38... b2
{[%clk 0:01:17.5]} 39. Rb1 {[%clk 0:00:52]} 39... f6 {[%clk 0:01:11.9]} 40.
gxf6+ {[%clk 0:00:46.8]} 40... Kxf6 {[%clk 0:01:11.9]} 41. e4 {[%clk 0:00:41.2]}
41... Rb4 {[%clk 0:01:12]} 42. Ke3 {[%clk 0:00:40.8]} 42... h5 {[%clk
0:00:45.9]} 43. Kf4 {[%clk 0:00:34.1]} 43... h4 {[%clk 0:00:44.8]} 44. Kf3
{[%clk 0:00:32.3]} 44... Ke5 {[%clk 0:00:42.6]} 45. Ke3 {[%clk 0:00:26.8]} 45...
h3 {[%clk 0:00:41.5]} 46. Kf3 {[%clk 0:00:27.2]} 46... Rb3+ {[%clk 0:00:37.1]}
47. Kg4 {[%clk 0:00:24.8]} 47... h2 {[%clk 0:00:36.2]} 48. Kg5 {[%clk
0:00:12.8]} 48... h1=Q {[%clk 0:00:30.4]} 49. Rxh1 {[%clk 0:00:12.9]} 49... b1=Q
{[%clk 0:00:31.3]} 50. Rxb1 {[%clk 0:00:13.5]} 50... Rxb1 {[%clk 0:00:32.2]} 51.
f6 {[%clk 0:00:14]} 51... Rg1+ {[%clk 0:00:32.5]} 52. Kh6 {[%clk 0:00:14.4]}
52... Kxf6 {[%clk 0:00:33.3]} 0-1

[Event "Early-Titled-Tuesday-Blitz-February-13-2024"]
[Site "Chess.com"]
[Date "2024.02.13"]
[Round "2"]
[White "deribas12345"]
[Black "BardArtem"]
[Result "1-0"]
[WhiteElo "2578"]
[BlackElo "2776"]
[TimeControl "180+1"]
[EndTime "8:19:53 PST"]
[Termination "deribas12345 won by checkmate"]

1. d4 {[%clk 0:03:00.9]} 1... Nf6 {[%clk 0:02:58.5]} 2. c4 {[%clk 0:02:54.2]}
2... b6 {[%clk 0:02:58.1]} 3. f3 {[%clk 0:02:41.1]} 3... Bb7 {[%clk 0:02:51.3]}
4. e4 {[%clk 0:02:40.9]} 4... g6 {[%clk 0:02:52.2]} 5. e5 {[%clk 0:02:36.8]}
5... Ng8 {[%clk 0:02:52]} 6. Nc3 {[%clk 0:02:34.3]} 6... Bg7 {[%clk 0:02:52.1]}
7. Nh3 {[%clk 0:02:30.2]} 7... e6 {[%clk 0:02:50.7]} 8. Bg5 {[%clk 0:02:12.6]}
8... Ne7 {[%clk 0:02:47]} 9. Qd2 {[%clk 0:02:09.2]} 9... h6 {[%clk 0:02:41.6]}
10. Bh4 {[%clk 0:02:03.2]} 10... g5 {[%clk 0:02:41.5]} 11. Bf2 {[%clk 0:02:03]}
11... Nf5 {[%clk 0:02:38.4]} 12. Bd3 {[%clk 0:02:01]} 12... g4 {[%clk
0:02:12.5]} 13. Nf4 {[%clk 0:01:51]} 13... Nh4 {[%clk 0:02:02.8]} 14. O-O-O
{[%clk 0:01:38.8]} 14... h5 {[%clk 0:01:52.7]} 15. Be4 {[%clk 0:01:22.9]} 15...
Bxe4 {[%clk 0:01:48.9]} 16. Nxe4 {[%clk 0:01:23.8]} 16... Nc6 {[%clk 0:01:46.8]}
17. fxg4 {[%clk 0:01:14.8]} 17... hxg4 {[%clk 0:01:45.6]} 18. Rhf1 {[%clk
0:01:06.1]} 18... Nf5 {[%clk 0:01:42.4]} 19. h3 {[%clk 0:00:51.9]} 19... gxh3
{[%clk 0:01:35.7]} 20. g4 {[%clk 0:00:51.9]} 20... Nfe7 {[%clk 0:01:23.3]} 21.
Nh5 {[%clk 0:00:50.8]} 21... Kf8 {[%clk 0:01:20.4]} 22. Bh4 {[%clk 0:00:41.8]}
22... Rh7 {[%clk 0:00:55.1]} 23. Ng5 {[%clk 0:00:36]} 23... Rxh5 {[%clk
0:00:48.2]} 24. Rxf7+ {[%clk 0:00:31.8]} 24... Kg8 {[%clk 0:00:47.6]} 25. gxh5
{[%clk 0:00:32.3]} 25... Qe8 {[%clk 0:00:35.1]} 26. Rg1 {[%clk 0:00:29.2]} 26...
Bh6 {[%clk 0:00:35.5]} 27. Rf6 {[%clk 0:00:25.7]} 27... Bg7 {[%clk 0:00:23.9]}
28. Nxe6 {[%clk 0:00:14.4]} 28... dxe6 {[%clk 0:00:19.7]} 29. h6 {[%clk
0:00:14.5]} 29... Nf5 {[%clk 0:00:16.7]} 30. hxg7 {[%clk 0:00:11.3]} 30... Qh5
{[%clk 0:00:15]} 31. Rxf5 {[%clk 0:00:08.3]} 31... Qxf5 {[%clk 0:00:10.9]} 32.
Bf6 {[%clk 0:00:07.7]} 32... Qh7 {[%clk 0:00:11.4]} 33. Rh1 {[%clk 0:00:07.6]}
33... b5 {[%clk 0:00:07.5]} 34. d5 {[%clk 0:00:08]} 34... exd5 {[%clk
0:00:05.2]} 35. cxd5 {[%clk 0:00:08.9]} 35... Rd8 {[%clk 0:00:04]} 36. d6 {[%clk
0:00:08.8]} 36... cxd6 {[%clk 0:00:03.7]} 37. Qd5# {[%clk 0:00:08.9]} 1-0